Cogmind - Beta 9 @@@ ROGUE MODE // 2019.10.26 @ 19:28:15 Player: Blind Ryan Result: Destroyed by Y-54 Guardian with Gatling Laser Performance ------------- Evolutions (3) 1500 Regions Visited (5) 1000 Robots Destroyed (36) 180 Value Destroyed (1459) 1459 Prototype IDs (0) 0 Alien Tech Used (0) 0 Bonus (180) 180 TOTAL SCORE: 4319 Bonus ------- Follower Combat Kills 180 Cogmind --------- Core Integrity 0/700 Matter 56/300 Energy 100/100 System Corruption 1% Temperature Cool (12) Location -7/Storage Parts ------- Power (1) Propulsion (4) Utility (4) Medium Armor Plating Improved Light Armor Plating Weapon (4) Inventory (4) Peak State ------------ Power Light Nuclear Core Propulsion Carbon-fiber Leg Carbon-fiber Leg Carbon-fiber Leg Carbon-fiber Leg Utility Improved Heat Sink Advanced Heat Sink Large Storage Unit Large Storage Unit Weapon Gauss Cannon Gauss Cannon Gauss Cannon Gauss Cannon Inventory Ion Engine Light Nuclear Core Aluminum Leg Aluminum Leg Aluminum Leg Medium Storage Unit Advanced Weight Redist. System Advanced Terrain Scanner Matter Filter Improved Light Armor Plating Assault Rifle Heavy Assault Rifle Autogun Gauss Rifle [Rating: 44] Favorites ----------- Power Ion Engine Engine Ion Engine Power Core Light Nuclear Core Propulsion Aluminum Leg Treads Light Treads Leg Aluminum Leg Utility Large Storage Unit Device Improved Heat Sink Storage Large Storage Unit Processor Advanced Visual Processing Unit Protection Hardened Light Armor Plating Weapon Minigun Ballistic Gun Minigun Ballistic Cannon Gauss Cannon Build | -11 -10 -9 -8 -7 -7 ------- Run | Scr Mat Mat Mat Fac Sto Slots Evolved 6 | . . 2 2 2 . Power . | . . . . . . Propulsion 2 | . . 1 1 . . Utility 2 | . . 1 1 . . Weapon 2 | . . . . 2 . Parts Attached 69 | 6 1 8 17 12 25 Power 7 | 1 . . 2 . 4 Engine 3 | 1 . . 2 . . Core 4 | . . . . . 4 Reactor . | . . . . . . Propulsion 19 | 2 . 4 6 . 7 Treads 2 | 2 . . . . . Leg 17 | . . 4 6 . 7 Wheel . | . . . . . . Hover . | . . . . . . Flight . | . . . . . . Utility 17 | 1 1 3 6 2 4 Device 3 | . . . . 1 2 Storage 7 | 1 1 1 4 . . Processor 3 | . . 1 1 1 . Hackware . | . . . . . . Protection 4 | . . 1 1 . 2 Artifact . | . . . . . . Weapon 26 | 2 . 1 3 10 10 Energy Gun . | . . . . . . Energy Cannon . | . . . . . . Ballistic Gun 18 | 2 . 1 3 6 6 Ballistic Cannon 8 | . . . . 4 4 Launcher . | . . . . . . Special Weapon . | . . . . . . Impact Weapon . | . . . . . . Slashing Weapon . | . . . . . . Piercing Weapon . | . . . . . . Special Melee Weapon . | . . . . . . Unidentified Prototypes . | . . . . . . Parts Lost 24 | . . . 5 . 19 Power 4 | . . . 1 . 3 Propulsion 9 | . . . 3 . 6 Utility 2 | . . . 1 . 1 Weapon 9 | . . . . . 9 Highest Loss Streak 14 | . . . 4 . 14 Average Slot Usage (%) 94 | . 97 98 96 97 86 Engine 7 | . 14 11 8 7 1 Treads 3 | . 28 2 . . . Leg 27 | . . 28 33 30 25 Device 1 | . . . . 3 6 Storage 17 | . 25 19 17 15 13 Processor 7 | . . 2 9 10 7 Protection 5 | . . 10 8 . . Ballistic Gun 19 | . 28 22 18 24 14 Ballistic Cannon 2 | . . . . 3 10 Naked Turns 6 | . . . . . 6 Heaviest Build 67 | 12 16 33 52 65 67 Greatest Support 60 | 40 40 40 45 54 60 Greatest Overweight (x) 10 | . . 1 4 1 10 Average Overweight (x) . | . . . . . 1 Largest Inventory Capacity 20 | 6 6 10 20 16 16 Average Capacity 12 | 5 6 7 13 16 15 Most Carried 15 | 4 3 4 12 10 15 Average Carried 6 | 2 2 1 5 7 11 Final Capacity 4 | . . . . . 4 Final Carried . | . . . . . . Class Distribution -------------------- 72% | Mutant 15% | Scavenger-Skirmisher 10% | Scavenger-Gunner Dominant Class ---------------- Mutant | -10/Materials Mutant | -9/Materials Mutant | -8/Materials Scavenger-Skirmisher | -7/Factory Scavenger-Gunner | -7/Storage Resources | -11 -10 -9 -8 -7 -7 ----------- Run | Scr Mat Mat Mat Fac Sto Matter Collected 1813 | 260 81 270 508 . 694 Remotely . | . . . . . . Salvage Created 1430 | . 81 189 525 . 635 Parts 78 | . 4 11 26 . 37 Haulers Intercepted 1 | . . . . . 1 Recyclers Shooed . | . . . . . . Parts Field Recycled . | . . . . . . Retrieved Matter . | . . . . . . Parts Self-Destructed . | . . . . . . Prevented . | . . . . . . Kills | -11 -10 -9 -8 -7 -7 ------- Run | Scr Mat Mat Mat Fac Sto Combat Hostiles Destroyed 31 | . 2 4 10 . 15 Guns 22 | . 2 4 10 . 6 Cannons 9 | . . . . . 9 Classes Destroyed 8 | . 1 1 2 . 4 Worker 1 | . . . . . 1 Builder 2 | . . . 1 . 1 Hauler 1 | . . . . . 1 Operator 1 | . . . . . 1 Swarmer 3 | . . . . . 3 Grunt 16 | . 2 3 6 . 5 Sentry 8 | . . 1 3 . 4 Hunter 4 | . . . 1 . 3 Best Kill Streak 5 | . 2 2 2 . 5 Combat Bots Only 4 | . 2 2 2 . 4 Max Kills in Single Turn 2 | . 1 1 1 . 2 Gunslinging 1 | . . . . . 1 Exploded . | . . . . . . Melee . | . . . . . . Uniques/NPCs Destroyed . | . . . . . . Combat | -11 -10 -9 -8 -7 -7 -------- Run | Scr Mat Mat Mat Fac Sto Damage Taken 4549 | . 108 220 1065 . 3156 Core 998 | . 52 49 188 . 709 Absorbed by Shields . | . . . . . . Core Remaining (%) 82 | 100 79 87 65 . . Volleys Fired 115 | . 8 19 47 . 41 Largest 4 | . 2 2 2 . 4 Hottest 192 | . 40 43 50 . 192 Shots Fired 278 | . 16 38 94 . 130 Gun 195 | . 16 38 94 . 47 Cannon 83 | . . . . . 83 Launcher . | . . . . . . Special . | . . . . . . Kinetic 278 | . 16 38 94 . 130 Thermal . | . . . . . . Explosive . | . . . . . . Electromagnetic . | . . . . . . Robot Hit Streak 12 | . 9 9 12 . 11 Robot Miss Streak 5 | . 1 2 5 . 5 Penetration Max 1 | . . . . . 1 Secondary Targets 1 | . . . . . 1 Max Gunslinging Chain 1 | . . . . . 1 Shots Hit Robots 165 | . 12 26 60 . 67 Core Hits 77 | . 7 11 23 . 36 Critical Hits 7 | . . 1 1 . 5 Critical Kills 2 | . . . 1 . 1 Critical Parts Destroyed 5 | . . 1 . . 4 Melee Attacks . | . . . . . . Impact . | . . . . . . Slashing . | . . . . . . Piercing . | . . . . . . Sneak Attacks . | . . . . . . Combat Hostiles . | . . . . . . Follow-up Attacks . | . . . . . . Damage Inflicted 2932 | . 118 283 931 . 1600 Guns 1704 | . 118 283 931 . 372 Cannons 1228 | . . . . . 1228 Explosions . | . . . . . . Melee . | . . . . . . Ramming . | . . . . . . Kinetic 2932 | . 118 283 931 . 1600 Thermal . | . . . . . . Explosive . | . . . . . . Electromagnetic . | . . . . . . Impact . | . . . . . . Slashing . | . . . . . . Piercing . | . . . . . . Highest Corruption 1 | . . . . . 1 Average Corruption 1 | . . . . . 1 Corruption Purged . | . . . . . . Effects 3 | . . . . . 3 Message Errors 1 | . . . . . 1 Data Loss (minor) 1 | . . . . . 1 Weapon Failures 1 | . . . . . 1 Overload Shots . | . . . . . . Overflow Damage . | . . . . . . Projectiles . | . . . . . . Explosions . | . . . . . . Melee . | . . . . . . Knockbacks 18 | . . . . . 18 Impact . | . . . . . . Kinetic 15 | . . . . . 15 Secondary 3 | . . . . . 3 Self-Inflicted Damage . | . . . . . . Shots . | . . . . . . Rammed . | . . . . . . Targets Rammed . | . . . . . . Kicked . | . . . . . . Crushed . | . . . . . . Highest Temperature 177 | . 9 18 46 . 177 Average Temperature 26 | . 7 10 17 . 40 Received Heat Transfer 1827 | . 60 96 324 . 1347 Siege Activations . | . . . . . . Robots Corrupted . | . . . . . . Combat Hostiles . | . . . . . . Parts Fried . | . . . . . . Impact Corruptions . | . . . . . . Robots Melted . | . . . . . . Combat Hostiles . | . . . . . . Parts Melted . | . . . . . . Heat Transferred . | . . . . . . Parts Sabotaged . | . . . . . . Parts Stolen . | . . . . . . Parts Stripped . | . . . . . . Power Chain Reactions . | . . . . . . Missiles Intercepted . | . . . . . . Alert | -11 -10 -9 -8 -7 -7 ------- Run | Scr Mat Mat Mat Fac Sto Peak Influence 216 | . 95 154 170 30 216 Average Influence 77 | . 57 80 82 30 100 Maximum Alert Level 1 | . . . . . 1 Low Security (%) 99 | . . . . . . Level 1 . | . . . . . . Level 2 . | . . . . . . Level 3 . | . . . . . . Level 4 . | . . . . . . Level 5 . | . . . . . . High Security . | . . . . . . Max Security . | . . . . . . Squads Dispatched 11 | . 1 2 2 . 6 Investigation 1 | . . . . . 1 Extermination . | . . . . . . Reinforcement 9 | . 1 2 2 . 4 Assault . | . . . . . . Garrison 1 | . . . . . 1 Intercept . | . . . . . . Construction Impeded 1 | . . . . . 1 Haulers Reinforced . | . . . . . . Stealth | -11 -10 -9 -8 -7 -7 --------- Run | Scr Mat Mat Mat Fac Sto Distress Signals 2 | . . 1 1 . . Communications Jammed . | . . . . . . Distress Signals . | . . . . . . Times Spotted 59 | . 7 8 17 . 27 Peak Tracking Total 8 | . 3 2 4 . 8 Tactical Retreats 3 | . . . 1 . 2 Traps | -11 -10 -9 -8 -7 -7 ------- Run | Scr Mat Mat Mat Fac Sto Traps Triggered 2 | . . . . . 2 Indirectly . | . . . . . . Trap Hack Attempts . | . . . . . . Triggered . | . . . . . . Disarmed . | . . . . . . Reprogrammed . | . . . . . . Reused . | . . . . . . Traps Extracted . | . . . . . . Installed . | . . . . . . Triggered . | . . . . . . Machines | -11 -10 -9 -8 -7 -7 ---------- Run | Scr Mat Mat Mat Fac Sto Machines Disabled 3 | . . . 1 . 2 Max in Single Turn 1 | . . . 1 . 1 Machines Sabotaged . | . . . . . . Garrisons Compromised . | . . . . . . Overloaded Fab Kills . | . . . . . . Fab Network Shutdowns . | . . . . . . Hacking | -11 -10 -9 -8 -7 -7 --------- Run | Scr Mat Mat Mat Fac Sto Machines Accessed . | . . . . . . Terminals . | . . . . . . Fabricators . | . . . . . . Repair Stations . | . . . . . . Recycling Units . | . . . . . . Scanalyzers . | . . . . . . Garrison Access . | . . . . . . Total Hacks . | . . . . . . Successful . | . . . . . . Failed . | . . . . . . Catastrophic . | . . . . . . Database Lockouts . | . . . . . . Manual . | . . . . . . Terminals . | . . . . . . Fabricators . | . . . . . . Repair Stations . | . . . . . . Recycling Units . | . . . . . . Scanalyzers . | . . . . . . Garrison Access . | . . . . . . Terminal Hacks . | . . . . . . Fabricator Hacks . | . . . . . . Repair Station Hacks . | . . . . . . Recycling Unit Hacks . | . . . . . . Scanalyzer . | . . . . . . Garrison Access Hacks . | . . . . . . Unauthorized Hacks . | . . . . . . Terminals . | . . . . . . Fabricators . | . . . . . . Repair Stations . | . . . . . . Recycling Units . | . . . . . . Scanalyzers . | . . . . . . Garrison Access . | . . . . . . Data Cores Recovered . | . . . . . . Used . | . . . . . . Hacking Detections . | . . . . . . Full Trace Events . | . . . . . . Feedback Events . | . . . . . . Feedback Blocked . | . . . . . . Robot Schematics Acquired . | . . . . . . Robots Built . | . . . . . . Matter . | . . . . . . Time . | . . . . . . Total Robot Build Rating . | . . . . . . Part Schematics Acquired . | . . . . . . Parts Built . | . . . . . . Matter . | . . . . . . Time . | . . . . . . Total Part Build Rating . | . . . . . . Parts Repaired . | . . . . . . Time . | . . . . . . Parts Recycled . | . . . . . . Recycled Matter . | . . . . . . Retrieved Matter . | . . . . . . Retrieved Components . | . . . . . . Parts Scanalyzed . | . . . . . . Part Schematics Acquired . | . . . . . . Parts Damaged . | . . . . . . Bothacking | -11 -10 -9 -8 -7 -7 ------------ Run | Scr Mat Mat Mat Fac Sto Used RIF Installer . | . . . . . . Robots Hacked . | . . . . . . Non-combat . | . . . . . . Combat . | . . . . . . Robot Hacks Applied . | . . . . . . Relay Couplers Released . | . . . . . . Robots Rewired . | . . . . . . Allies Hacked . | . . . . . . Hacks Repelled . | . . . . . . Allies | -11 -10 -9 -8 -7 -7 -------- Run | Scr Mat Mat Mat Fac Sto Total Allies 10 | . . . . . 10 Largest Group 10 | . . . . . 10 Highest-Rated Group 173 | . . . . . 173 Highest-Rated Ally 29 | . . . . . 29 Total Orders . | . . . . . . Ally Attacks 40 | . . . . . 40 Total Damage 559 | . . . . . 559 Kills 5 | . . . . . 5 Allies Corrupted . | . . . . . . Allies Melted . | . . . . . . Intel | -11 -10 -9 -8 -7 -7 ------- Run | Scr Mat Mat Mat Fac Sto Robot Analysis Total . | . . . . . . Derelict Logs Recovered . | . . . . . . Drone Launches . | . . . . . . Drone Recoveries . | . . . . . . Exploration | -11 -10 -9 -8 -7 -7 ------------- Run | Scr Mat Mat Mat Fac Sto Turns Passed 2304 | 75 196 375 953 169 536 Spaces Moved 1105 | 45 98 212 438 91 221 Core 38 | 9 . . . . 29 Treads 161 | 36 98 27 . . . Legs 906 | . . 185 438 91 192 Wheels . | . . . . . . Hover . | . . . . . . Flight . | . . . . . . Fastest Speed 50 | 50 160 120 120 120 50 Average Speed 144 | 138 160 132 147 136 148 Slowest Speed 550 | 160 160 160 240 150 550 Overloaded Moves . | . . . . . . Propulsion Burnouts . | . . . . . . Robots Hopped . | . . . . . . Cave-ins Triggered . | . . . . . . Exploration Rate (%) 21 | 4 30 24 33 2 35 Regions Visited 5 Branch Regions 1 Pre-discovered Areas . | . . . . . . Known Exits Taken . | . . . . . . Unknown Exits Taken 5 | 1 1 1 1 1 . Scrap Searched . | . . . . . . Spaces Dug . | . . . . . . Terrain Destroyed 34 | . . . . . 34 Melee . | . . . . . . Projectile 34 | . . . . . 34 AOE . | . . . . . . Actions | -11 -10 -9 -8 -7 -7 --------- Run | Scr Mat Mat Mat Fac Sto Total 1594 | 58 123 271 667 137 338 Wait 222 | . 16 20 144 18 24 Move 1100 | 44 97 211 437 90 221 Hop . | . . . . . . Pick Up 59 | 8 1 8 15 11 16 Fast Attach . | . . . . . . Attach 44 | 6 1 5 10 9 13 Detach 4 | . . . 1 2 1 Swap 25 | . . 3 7 3 12 Drop 25 | . . 5 6 4 10 Fire 115 | . 8 19 47 . 41 Melee . | . . . . . . Ram . | . . . . . . Kick . | . . . . . . Crush . | . . . . . . Escape Stasis . | . . . . . . Rewire . | . . . . . . Trap . | . . . . . . Miscellaneous . | . . . . . . Route ------- -11/Scrapyard -10/Materials -9/Materials (discovered 2 exits: [*Mat] / [*Min]) -8/Materials -7/Factory -7/Storage History --------- Turn | Location | Event 5 | -11/Scrapyard | Discovered new exit (range 15) 76 | -11/Scrapyard | Entered Materials 253 | -10/Materials | Discovered new exit (range 13) 272 | -10/Materials | Entered another Materials area 272 | -9/Materials | Evolved 2 slots: Propulsion x1, Utility x1 301 | -9/Materials | Build established: Mutant 464 | -9/Materials | Discovered new exit (range 6) 534 | -9/Materials | Discovered new exit (range 5) 647 | -9/Materials | Entered another Materials area 647 | -8/Materials | Evolved 2 slots: Propulsion x1, Utility x1 1309 | -8/Materials | Discovered new exit (range 5) 1533 | -8/Materials | Lost 4 parts (3n1u) 1600 | -8/Materials | Entered Factory 1600 | -7/Factory | Evolved 2 slots: Weapon x2 1756 | -7/Factory | Discovered new exit (range 8) 1769 | -7/Factory | Entered Storage 1873 | -7/Storage | Build established: Scavenger-Skirmisher 1875 | -7/Storage | Assisted by bots powering up and referring to "LRC-V3" 1975 | -7/Storage | Lost 3 parts (1p2w) 2182 | -7/Storage | Garrison activated, responded to threat 2251 | -7/Storage | Core integrity fell below 50% 2265 | -7/Storage | Core integrity fell below 20% 2282 | -7/Storage | Lost 14 parts (2p4n1u7w) 2305 | -7/Storage | Destroyed by Y-54 Guardian with Gatling Laser Last Messages --------------- Assault Rifle destroyed. K-01 Serf collects debris. Acquired 41 matter. K-01 Serf collects debris. U-05 Engineer builds a Wall. K-01 Serf collects debris. Dropped Lrg. Storage Unit. K-01 Serf collects debris. Dropped Lrg. Storage Unit. Door malfunctions. U-05 Engineer builds a Wall. K-01 Serf collects debris. U-05 Engineer builds a Wall. Dropped Gauss Rifle. OKAGWHXY51ZV&IWR6U R=L,LJ%9L& A Acquired Med. Armor Plating. Dropped Matter Filter. Dropped Imp. Heat Sink. K-01 Serf collects debris. U-05 Engineer builds a Wall. Map ----- +----------------------------------------------------+ | ??????????????????????????????" #???????? ??? | | ??????????????????????????????" #???????? ??? | | ??????????????????????????????" #????###? ??? | | ?????????????????????????????? #??? ## ### | | ?????????????????????????????? #?? ## ## | | ?????????????????????????????? #? ## ## | | ???????????????????????????? # ## ## | | ?????????????????????????##+###/#[ ! ]## ## | | ???????????????###+#######!= +! ## ## | | ???????????????# *%%![ #?##+##?# ## | | ???????????????# %#[[! ### ### ## | | ???????????????# ! [=!=%*! T / | | ???????????????# =%=###### #### ## | | ???????????????# """ "" [*!*%##???## ##??# | | ???????????????# """ """ *[!=##????# ######## | | ???????????????# """ """ #%!!##????# | | ???????????????? #[==##????########## | | ???????????????###########*!!#???????????# | | ????????????????# # * #???????????# "" | | ????????????????# """ + # ??????????# "" | | ????????????????# "?""" # # ??????????# "" | | ????????????????# "?""!! # #? ?????????# | | ????????????????# "?"[!" / ????????# | | ????????????????# """"!" # # " "??????# | | ????????????????# g """ # # ""G???????# | | ????????????????# @ Y # #? ???????##"" | | ????????????????# # #?####???????#"" | | ????????????????########## #?????????????## | | ????????????????????????? ??????????????? | | ????????????????????????? #?????????????? | | ????????????????????????? +?????????????? | | ????????????????????????? #?????????????? | | ?????????????????????????? #?????????????? | | ?????????????????????????? ##???????????????? | | | | | | | | | | | | | | | | | | | | | | | | | | | | | | | | | +----------------------------------------------------+ Best States ------------- Heat Dissipation 67 Energy Generation 14 Energy Capacity 275 Matter Stores 500 Matter Capacity 500 Sight Range 22 Terrain Scan Density 10 Additional Mass Support 9 Armor Coverage 375 Evasion (%) 50 Recoil Reduction 2 Item Schematics ----------------- None Robot Schematics ------------------ None Fabricated ------------ Nothing Alien Tech Used ----------------- None Achievements -------------- Please Form A Line The More The Merrier Troublemaker Challenges ------------ None Game ------ Seed CoilSpectralMicroactuators Manual? 0 Play Time 00:38:37 Cumulative 4.6 hours Start 2019.10.26 @ 18:46:32 End 2019.10.26 @ 19:28:15 Sessions 1 Manual Loads 0 Difficulty Rogue Special Mode None Game No. 9 Rogue 9 Adventurer 0 Explorer 0 Win Type - Total 0 Types 0/0/0/0/0/0/0 Lore% 1 Gallery% 10 Achievement% 8 Wizard Run 0 Options --------- ASCII 1 Keyboard 0 Movement Numpad Keybinds 0 Fullscreen 2 Font 18/TerminusBold Map View 76x50 Tactical HUD 0 Map Filters NONE Filters BRIGHTNESS(150)|SATURATION(80) Steam 1 RUN: c0307ff2-7a3c-4187-87e6-c3cd6773478b